lending/lending_fUSD_20241211
["ID","MTS","AMOUNT","RATE_DAILY","PERIOD"]
[345060032,1733957433113,-150.0,0.00011086,2]
[345060033,1733957433122,-3879.0,0.00011086,2]
[345060034,1733957433132,-748.364,0.00011095,2]
[345060035,1733957433142,-400.121207,0.00011097,2]
[345060036,1733957433152,-400.121207,0.00011097,2]
[345060037,1733957433161,-400.121207,0.00011097,2]
[345060038,1733957433170,-400.121207,0.00011097,2]
[345060039,1733957433180,-400.121207,0.00011097,2]
[345060040,1733957433191,-400.121207,0.00011097,2]
[345060041,1733957433201,-400.121207,0.00011097,2]
[345060042,1733957433210,-400.121207,0.00011097,2]
[345060043,1733957433220,-400.121207,0.00011097,2]
[345060044,1733957433230,-400.121207,0.00011097,2]
[345060045,1733957433240,-400.121207,0.00011097,3]
[345060046,1733957433249,-400.121207,0.00011097,3]
[345060047,1733957433259,-400.121207,0.00011097,3]
[345060048,1733957433269,-400.121207,0.00011097,3]
[345060049,1733957433279,-400.121207,0.00011097,3]
[345060050,1733957433290,-400.121207,0.00011097,3]
[345060051,1733957433300,-400.121207,0.00011097,3]
[345060052,1733957433310,-400.121207,0.00011097,3]
[345060053,1733957433320,-400.121207,0.00011097,3]
[345060054,1733957433330,-400.121207,0.00011097,3]
[345060055,1733957433344,-500.0,0.00011097,2]
[345060056,1733957433354,-500.0,0.00011097,2]
[345060057,1733957433364,-500.0,0.00011098,2]
[345060058,1733957433373,-498.05874887,0.00011098,2]
[345060062,1733957437492,-1.94125113,0.00011098,2]
[345060063,1733957437503,-500.0,0.00011098,2]
[345060064,1733957437512,-151.29,0.00011098,2]
[345060065,1733957437522,-534.8,0.00011098,2]
[345060067,1733957437531,-1000.0,0.00011099,2]
[345060068,1733957437540,-525.3,0.00011099,2]
[345060069,1733957437549,-500.0,0.00011099,2]
[345060070,1733957437558,-500.0,0.00011099,2]
[345060071,1733957437568,-500.0,0.00011099,2]
[345060072,1733957437577,-244.69,0.00011099,2]
[345060073,1733957437586,-500.0,0.00011099,2]
[345060074,1733957437596,-604.48,0.00011099,2]
[345060075,1733957437605,-357.00839462,0.00011099,2]
[345060076,1733957437614,-218.58175622,0.00011099,2]
[345060077,1733957437624,-506.75,0.00011099,2]
[345060078,1733957437634,-506.75,0.00011099,2]
[345060079,1733957437643,-506.75,0.00011099,2]
[345060080,1733957437651,-506.75,0.00011099,2]
[345060081,1733957437660,-506.75,0.00011099,2]
[345060082,1733957437669,-506.75,0.00011099,2]
[345060083,1733957437679,-506.75,0.00011099,2]
[345060084,1733957437688,-506.75,0.00011099,2]
[345060085,1733957437697,-506.75,0.00011099,2]
[345060086,1733957437707,-506.75,0.00011099,2]
[345060087,1733957437716,-506.75,0.00011099,2]
[345060088,1733957437926,-506.75,0.00011099,2]
[345060089,1733957437937,-506.75,0.00011099,2]
[345060090,1733957437947,-506.75,0.00011099,2]
[345060091,1733957437957,-506.75,0.00011099,2]
[345060092,1733957437967,-506.75,0.00011099,2]
[345060093,1733957437976,-506.75,0.00011099,2]
[345060094,1733957437986,-506.75,0.00011099,2]
[345060095,1733957437996,-506.75,0.00011099,2]
[345060096,1733957438005,-506.75,0.00011099,2]
[345060097,1733957438016,-506.75,0.00011099,2]
[345060098,1733957438025,-506.75,0.00011099,2]
[345060099,1733957438035,-506.75,0.00011099,2]
[345060100,1733957438045,-506.93,0.00011099,2]
[345060101,1733957438054,-288.49910378,0.00011099,2]
[345060102,1733957438063,-1208.62,0.00011099,2]
[345060103,1733957438072,-1208.62,0.00011099,2]
[345060104,1733957438082,-1208.62,0.00011099,2]
[345060105,1733957438091,-1208.62,0.00011099,2]
[345060106,1733957438101,-1208.62,0.00011099,2]
[345060108,1733957438111,-1208.62,0.00011099,2]
[345060110,1733957438120,-1208.62,0.00011099,2]
[345060112,1733957438129,-1208.62,0.00011099,2]
[345060114,1733957438138,-1208.62,0.00011099,2]
[345060116,1733957438148,-1208.62,0.00011099,2]
[345060118,1733957438157,-1208.62,0.00011099,2]
[345060120,1733957438166,-1208.62,0.00011099,2]
[345060122,1733957438175,-782.50574465,0.00011099,2]
[345060124,1733957438403,-286.49996773,0.00011099,2]
[345060125,1733957438416,-139.61428762,0.00011099,2]
[345060126,1733957438425,-1208.62,0.00011099,2]
[345060127,1733957438435,-675.31571238,0.00011099,2]
[345060128,1733957438447,-533.30428762,0.00011099,2]
[345060129,1733957438456,-1208.62,0.00011099,2]
[345060130,1733957438465,-1208.62,0.00011099,2]
[345060131,1733957438474,-1208.62,0.00011099,2]
[345060132,1733957438484,-1208.62,0.00011099,2]
[345060133,1733957438494,-1208.62,0.00011099,2]
[345060134,1733957438503,-1208.62,0.00011099,2]
[345060135,1733957438513,-1208.62,0.00011099,2]
[345060136,1733957438523,-1208.62,0.00011099,2]
[345060137,1733957438532,-1208.71,0.00011099,2]
[345060138,1733957438542,-826.0,0.000111,2]
[345060139,1733957438551,-106072.47049599,0.000111,2]
[345060140,1733957438561,-3361.07256629,0.000111,2]
[345060141,1733957438570,-790528.62240615,0.000111,2]
[345060142,1733957438582,-1100.26474152,0.000111,2]
[345060143,1733957438593,-7040.0,0.000111,2]
[345060144,1733957438615,-510.45200279,0.000111,2]
[345060145,1733957438627,-50684.99999995,0.000111,2]
[345060146,1733957438638,-969.99997,0.000111,2]
[345060147,1733957438671,-3032.20000001,0.000111,2]
[345060148,1733957438685,-3320.60868131,0.000111,2]
[345060149,1733957438696,-710.50000001,0.000111,2]
[345060150,1733957438708,-263.84190539,0.000111,2]
[345060151,1733957438719,-3339.664481,0.000111,2]
[345060154,1733957439567,-294.3957618,0.000111,2]
[345060155,1733957439613,-95189.99999997,0.000111,2]
[345060156,1733957439749,-958.91295326,0.000111,2]
[345060157,1733957439762,-4400.12770129,0.000111,2]
[345060158,1733957439774,-524.99999995,0.000111,2]
[345060159,1733957439792,-5135.791,0.000111,2]
[345060160,1733957439839,-1125.077993,0.000111,2]
[345060179,1733957442723,-1532290.5024614,0.000111,2]
[345060180,1733957442814,-1146.81987947,0.000111,2]
[345060181,1733957442826,-861.66300899,0.000111,2]
[345060182,1733957442838,-270.19060006,0.000111,2]
[345060183,1733957442849,-59886.4217426,0.000111,2]
[345060184,1733957442861,-455.31999994,0.000111,2]
[345060185,1733957442927,-4628.727316,0.000111,2]
[345060186,1733957442939,-609.699585,0.000111,2]
[345060221,1733957445625,-193.83,9.863e-05,2]
[345060222,1733957445635,-1882.0,0.0001014,2]
[345060223,1733957445645,-193.83,0.00010593,2]
[345060224,1733957445655,-5745.33999998,0.00011099,2]
[345060225,1733957445666,-1600.000003,0.00011099,2]
[345060226,1733957445678,-1003.662,0.00011099,2]
[345060227,1733957445694,-4250.0,0.00011099,2]
[345060228,1733957445785,-4045.01771518,0.00011099,2]
[345060229,1733957445797,-28427.360531,0.00011099,2]
[345060230,1733957445809,-92074.108647,0.00011099,2]
[345060231,1733957575358,490.62,8.905e-05,2]
[345060245,1733958631990,-150.0,9.924e-05,2]
[345060246,1733958632002,-193.83,9.993e-05,2]
[345060247,1733958632013,-1750.7294135,0.0001,2]
[345060248,1733958632024,-1500.0,0.00010126,2]
[345060249,1733958632035,-774.83,0.00010137,2]
[345060250,1733958632046,-899.63,0.00010241,2]
[345060251,1733958632056,-200.0,0.00010254,2]
[345060252,1733958632066,-1000.0,0.0001029,2]
[345060253,1733958632077,-250.0,0.0001029,2]
[345060254,1733958632087,-250.0,0.00010344,2]
[345060255,1733958632098,-1500.0,0.00010457,2]
[345060256,1733958632111,-150.0,0.00010468,2]
[345060257,1733958632123,-424.995,0.0001055,2]
[345060258,1733958632135,-975.06,0.00010578,2]
[345060259,1733958632145,-1500.0,0.00010605,2]
[345060260,1733958632155,-167.38,0.0001061,2]
[345060261,1733958632165,-1400.0,0.0001063,2]
[345060262,1733958632175,-500.0,0.0001063,2]
[345060263,1733958632185,-975.06,0.00010678,2]
[345060264,1733958632195,-975.06,0.00010678,2]
[345060265,1733958632205,-975.06,0.00010678,2]
[345060266,1733958632217,-1671.58,0.00010678,2]
[345060267,1733958632228,-975.06,0.00010678,2]
[345060268,1733958632240,-975.06,0.00010678,2]
[345060269,1733958632253,-150.0,0.000107,2]
[345060270,1733958632263,-3781.5,0.00010999,2]
[345060271,1733958632274,-150.0,0.00011067,2]
[345060272,1733958632284,-532.22854861,0.00011068,2]
[345060273,1733958632297,-319.5,0.00011068,2]
[345060274,1733958632310,-828.09297523,0.00011068,2]
[345060275,1733958632322,-524.23845342,0.00011068,2]
[345060276,1733958632340,-1535.39079124,0.00011068,2]
[345060277,1733958632352,-679.2768282,0.00011068,2]
[345060278,1733958632365,-1160.1,0.00011068,2]
[345060281,1733958632377,-813.321469,0.00011068,2]
[345060283,1733958632389,-494.027565,0.00011068,2]
[345060285,1733958632402,-573.8233693,0.00011068,2]
[345060287,1733958632412,-536.8266307,0.00011068,2]
[345060289,1733958632424,-956.1733693,0.00011068,2]
[345060290,1733958632436,-1500.0,0.00011069,2]
[345060291,1733958632446,-500.0,0.00011073,2]
[345060292,1733958632457,-511.13889382,0.00011073,2]
[345060293,1733958632469,-500.0,0.00011073,2]
[345060294,1733958632479,-500.0,0.00011073,2]
[345060295,1733958632490,-304.9355791,0.00011073,2]
[345060296,1733958632500,-161.07372596,0.00011073,2]
[345060297,1733958632511,-500.0,0.00011073,2]
[345060298,1733958632521,-577.77051472,0.00011073,2]
[345060299,1733958632531,-128.9079171,0.00011073,2]
[345060476,1733958637758,-371.0920829,0.00011073,2]
[345060477,1733958637770,-289.59842504,0.00011086,2]
[345060478,1733958638084,-371.29957496,0.00011086,2]
[345060479,1733958638095,-12488.37279916,0.0001109,2]
[345060480,1733958638107,-3125.94447996,0.0001109,2]
[345060481,1733958638119,-4624.71838196,0.0001109,2]
[345060482,1733958638129,-1971.28161804,0.0001109,2]
[345060483,1733958638141,-1683.0,0.0001109,2]
[345060484,1733958638153,-3762.0,0.0001109,2]
[345060485,1733958638166,-6356.55980484,0.0001109,2]
[345060486,1733958638176,-300.121208,0.00011097,2]
[345060487,1733958638186,-300.121208,0.00011097,2]
[345060488,1733958638196,-300.121208,0.00011097,2]
[345060489,1733958638207,-300.121208,0.00011097,2]
[345060490,1733958638219,-300.121208,0.00011097,2]
[345060491,1733958638230,-300.121208,0.00011097,2]
[345060492,1733958638240,-300.121208,0.00011097,2]
[345060493,1733958638250,-300.121208,0.00011097,2]
[345060494,1733958638260,-300.121208,0.00011097,2]
[345060495,1733958638270,-300.121208,0.00011097,2]
[345060496,1733958638281,-300.121208,0.00011097,3]
[345060497,1733958638292,-300.121208,0.00011097,3]
[345060498,1733958638303,-170.50569004,0.00011097,3]
[345060499,1733958638316,-129.61551796,0.00011097,3]
[345060500,1733958638327,-300.121208,0.00011097,3]
[345060501,1733958638337,-192.83437288,0.00011097,3]
[345060502,1733958638350,-107.28683512,0.00011097,3]
[345060504,1733958638360,-300.121208,0.00011097,3]
[345060505,1733958638371,-300.121208,0.00011097,3]
[345060506,1733958638382,-300.121208,0.00011097,3]
[345060507,1733958638392,-300.121208,0.00011097,3]
[345060508,1733958638403,-403.121208,0.00011097,3]
[345060509,1733958638414,-1547.345,0.00011097,2]
[345060510,1733958638425,-323.78,0.00011098,2]
[345060511,1733958638435,-503.42,0.00011098,2]
[345060512,1733958638446,-285.59055614,0.00011098,2]
[345060513,1733958638456,-534.26929988,0.00011098,2]
[345060514,1733958638467,-500.0,0.00011098,2]
[345060515,1733958638478,-469.4010321,0.00011098,2]
[345060516,1733958638489,-216.85247146,0.00011098,2]
[345060517,1733958638499,-534.26929988,0.00011098,2]
[345060518,1733958638509,-534.26929988,0.00011098,2]
[345060519,1733958638520,-500.0,0.00011098,2]
[345060520,1733958638530,-534.26929988,0.00011098,2]
[345060521,1733958638540,-500.0,0.00011098,2]
[345060522,1733958638550,-534.26929988,0.00011098,2]
[345060523,1733958638561,-534.26929988,0.00011098,2]
[345060524,1733958638571,-500.0,0.00011098,2]
[345060525,1733958638582,-534.26929988,0.00011098,2]
[345060526,1733958638592,-534.26929988,0.00011098,2]
[345060527,1733958638603,-500.0,0.00011098,2]
[345060528,1733958638614,-534.26929988,0.00011098,2]
[345060529,1733958638624,-534.26929988,0.00011098,2]
[345060530,1733958638635,-500.0,0.00011098,2]
[345060531,1733958638987,-534.26929988,0.00011098,2]
[345060532,1733958638998,-534.26929988,0.00011098,2]
[345060533,1733958639008,-534.26929988,0.00011098,2]
[345060534,1733958639018,-534.26929988,0.00011098,2]
[345060535,1733958639027,-534.26929988,0.00011098,2]
[345060536,1733958639037,-534.26929988,0.00011098,2]
[345060537,1733958639047,-534.26929988,0.00011098,2]
[345060538,1733958639057,-534.26929988,0.00011098,2]
[345060539,1733958639066,-534.26929988,0.00011098,2]
[345060540,1733958639076,-534.26929988,0.00011098,2]
[345060541,1733958639087,-258.39605039,0.00011098,2]
[345060542,1733958639100,-275.87324949,0.00011098,2]
[345060543,1733958639110,-534.26929988,0.00011098,2]
[345060544,1733958639120,-534.26929988,0.00011098,2]
[345060545,1733958639130,-534.26929988,0.00011098,2]
[345060546,1733958639140,-534.26929988,0.00011098,2]
[345060547,1733958639150,-534.26929988,0.00011098,2]
[345060548,1733958639159,-534.26929988,0.00011098,2]
[345060549,1733958639169,-534.26929988,0.00011098,2]
[345060550,1733958639179,-534.26929988,0.00011098,2]
[345060551,1733958639189,-534.26929988,0.00011098,2]
[345060552,1733958639199,-534.26929988,0.00011098,2]
[345060553,1733958639208,-534.26929988,0.00011098,2]
[345060554,1733958639220,-534.26929988,0.00011098,2]
[345060555,1733958639230,-534.26929988,0.00011098,2]
[345060556,1733958639239,-534.26929988,0.00011098,2]
[345060557,1733958639248,-534.26929988,0.00011098,2]
[345060558,1733958639258,-534.26929988,0.00011098,2]
[345060559,1733958639267,-534.26929988,0.00011098,2]
[345060560,1733958639277,-534.26929988,0.00011098,2]
[345060561,1733958639286,-534.26929988,0.00011098,2]
[345060562,1733958639296,-534.26929988,0.00011098,2]
[345060563,1733958639305,-534.26929988,0.00011098,2]
[345060564,1733958639315,-534.26929988,0.00011098,2]
[345060565,1733958639324,-534.26929988,0.00011098,2]
[345060566,1733958639333,-534.26929988,0.00011098,2]
[345060567,1733958639343,-534.26929988,0.00011098,2]
[345060568,1733958639354,-534.26929988,0.00011098,2]
[345060569,1733958639364,-534.26929988,0.00011098,2]
[345060570,1733958639373,-534.26929988,0.00011098,2]
[345060571,1733958639384,-534.26929988,0.00011098,2]
[345060572,1733958639394,-534.26929988,0.00011098,2]
[345060573,1733958639405,-534.26929988,0.00011098,2]
[345060574,1733958639414,-534.26929988,0.00011098,2]
[345060575,1733958639424,-534.26929988,0.00011098,2]
[345060576,1733958639434,-534.26929988,0.00011098,2]
[345060577,1733958639443,-534.26929988,0.00011098,2]
[345060578,1733958639453,-534.26929988,0.00011098,2]
[345060579,1733958639463,-534.26929988,0.00011098,2]
[345060580,1733958639474,-534.26929988,0.00011098,2]
[345060581,1733958639484,-534.26929988,0.00011098,2]
[345060582,1733958639494,-534.26929988,0.00011098,2]
[345060583,1733958639504,-534.26929988,0.00011098,2]
[345060584,1733958639513,-530.58468402,0.00011098,2]
[345060585,1733958639523,-530.58468402,0.00011098,2]
[345060586,1733958639532,-530.58468402,0.00011098,2]
[345060587,1733958639542,-530.58468402,0.00011098,2]
[345060588,1733958639551,-530.58468402,0.00011098,2]
[345060589,1733958639561,-530.58468402,0.00011098,2]
[345060590,1733958639570,-530.58468402,0.00011098,2]
[345060591,1733958639579,-530.58468402,0.00011098,2]
[345060592,1733958639589,-530.58468402,0.00011098,2]
[345060593,1733958639598,-530.58468402,0.00011098,2]
[345060594,1733958639608,-530.58468402,0.00011098,2]
[345060595,1733958639617,-530.58468402,0.00011098,2]
[345060596,1733958639627,-530.58468402,0.00011098,2]
[345060597,1733958639637,-530.58468402,0.00011098,2]
[345060598,1733958639646,-530.58468402,0.00011098,2]
[345060599,1733958639655,-530.58468402,0.00011098,2]
[345060600,1733958639668,-530.58468402,0.00011098,2]
[345060601,1733958639678,-530.58468402,0.00011098,2]
[345060602,1733958639687,-530.58468402,0.00011098,2]
[345060603,1733958639698,-530.58468402,0.00011098,2]
[345060604,1733958639709,-530.58468402,0.00011098,2]
[345060605,1733958639718,-530.58468402,0.00011098,2]
[345060606,1733958639728,-530.58468402,0.00011098,2]
[345060608,1733958639738,-530.58468402,0.00011098,2]
[345060609,1733958639748,-530.58468402,0.00011098,2]
[345060610,1733958639758,-530.58468402,0.00011098,2]
[345060611,1733958639767,-530.58468402,0.00011098,2]
[345060612,1733958639777,-530.58468402,0.00011098,2]
[345060613,1733958639787,-530.58468389,0.00011098,2]
[345060614,1733958639796,-500.85923626,0.00011098,2]
[345060615,1733958639806,-576.18000821,0.00011098,2]
[345060616,1733958639816,-500.0,0.00011098,2]
[345060617,1733958639825,-501.37854333,0.00011098,2]
[345060618,1733958639834,-503.70814381,0.00011098,2]
[345060619,1733958639844,-878.0,0.00011099,2]
[345060620,1733958639853,-30237.732,0.00011099,2]
[345060621,1733958639862,-53036.23524799,0.00011099,2]
[345060622,1733958639871,-1680.53628314,0.00011099,2]
[345060623,1733958639881,-22651.00015625,0.00011099,2]
[345060624,1733958639898,-43863.28016503,0.00011099,2]
[345060625,1733958639909,-2468.86793168,0.00011099,2]
[345060626,1733958639919,-965.31,0.00011099,2]
[345060627,1733958639930,-291.791,0.00011099,2]
[345060628,1733958639941,-2834.58454596,0.00011099,2]
[345060629,1733958639956,-1663.7124,0.00011099,2]
[345060630,1733958639967,-6593.7972085,0.00011099,2]
[345060631,1733958639980,-8280.2672648,0.00011099,2]
[345060632,1733958640114,-2049.89997072,0.00011099,2]
[345060633,1733958640125,-4736.39949954,0.00011099,2]
[345060634,1733958640136,-3203.04973036,0.00011099,2]
[345060635,1733958640147,-915.34000024,0.00011099,2]
[345060636,1733958640159,-2898.76459826,0.00011099,2]
[345060637,1733958640170,-1477.812,0.00011099,2]
[345060638,1733958640181,-448425.10287632,0.00011099,2]
[345060639,1733958640192,-680.34315717,0.00011099,2]
[345060653,1733958642967,-16000.0,0.00011099,2]
[345060654,1733958643014,-596.51749991,0.00011099,2]
[345060655,1733958643026,-922.49999895,0.00011099,2]
[345060656,1733958643037,-740.36,0.00011099,2]
[345060657,1733958643048,-570.916685,0.00011099,2]
[345060658,1733958643060,-657.41777,0.00011099,2]
[345060659,1733958643071,-360.26241,0.00011099,2]
[345060660,1733958643288,-21297.32652777,0.00011099,2]
[345060666,1733958645824,-1277.96742,0.00011099,2]
[345060667,1733958645836,-478.38836864,0.00011099,2]
[345060668,1733958645885,-24094.52656092,0.00011099,2]
[345060669,1733958646051,-402.52309571,0.00011099,2]
[345060670,1733958646063,-3084.69547425,0.00011099,2]
[345060671,1733958646075,-19412.39583994,0.00011099,2]
[345060672,1733958646086,-1923.73775998,0.00011099,2]
[345060673,1733958646107,-59683.38149,0.00011099,2]
[345060674,1733958646159,-25060.77172763,0.00011099,2]
[345060678,1733958879432,496.83,8.275e-05,2]
[345060687,1733959603936,176.82,9.375e-05,2]
[345060688,1733959622751,6991.51,9.342e-05,2]
[345060706,1733959783096,200.0,9.331e-05,2]
[345060719,1733959831998,-1500.0,9.635e-05,2]
[345060720,1733959832008,-250.0,9.756e-05,2]
[345060721,1733959832018,-1500.0,9.933e-05,2]
[345060722,1733959832027,-1257.98356802,9.94e-05,2]
[345060723,1733959832037,-1500.0,9.962e-05,2]
[345060724,1733959832047,-500.0,9.973e-05,2]
[345060725,1733959832056,-300.0,9.987e-05,2]
[345060726,1733959832066,-150.0,9.987e-05,2]
[345060727,1733959832076,-41080.41643198,9.988e-05,2]
[345060728,1733959832144,-1937.63733463,9.988e-05,2]
[345060729,1733959832156,-460.74,9.988e-05,2]
[345060730,1733959832192,-1097.66867969,9.988e-05,2]
[345060731,1733959832203,-1760.99899071,9.988e-05,2]
[345060732,1733959832219,-892.92702309,9.988e-05,2]
[345060733,1733959832231,-305.33042154,9.988e-05,2]
[345060734,1733959832243,-522.80002,9.988e-05,2]
[345060735,1733959832254,-1117.85,9.988e-05,2]
[345060736,1733959832265,-781.3299975,9.988e-05,2]
[345060737,1733959832276,-619.7112904,9.988e-05,2]
[345060738,1733959832288,-528.99517848,9.988e-05,2]
[345060739,1733959832300,-922.243665,9.988e-05,2]
[345060740,1733959832311,-1458.917646,9.988e-05,2]
[345060741,1733959832325,-972.60292826,9.988e-05,2]
[345060742,1733959832337,-1662.91255174,9.988e-05,2]
[345060743,1733959832348,-9013.00403678,9.988e-05,2]
[345060766,1733959837937,-1275.63470079,9.988e-05,2]
[345060767,1733959837948,-1843.5,9.988e-05,2]
[345060768,1733959837983,-16960.52544779,9.988e-05,2]
[345060769,1733959837995,-2066.501043,9.988e-05,2]
[345060770,1733959838026,-8956.1,9.988e-05,2]
[345060771,1733959838066,-820.000011,9.988e-05,2]
[345060772,1733959838077,-594.99998642,9.988e-05,2]
[345060773,1733959838088,-2689.54,9.988e-05,2]
[345060774,1733959838100,-871.70363729,9.988e-05,2]
[345060775,1733959838111,-1354.9999998,9.988e-05,2]
[345060776,1733959838123,-1446.14367545,9.988e-05,2]
[345060777,1733959838146,-59021.94310039,9.988e-05,2]
[345060778,1733959838156,-185.5902716,9.991e-05,2]
[345060779,1733959838166,-30793.87,9.991e-05,2]
[345060780,1733959838175,-259.38,9.991e-05,2]
[345060781,1733959838184,-166.988,9.993e-05,2]
[345060782,1733959838194,-500.0,9.999e-05,2]
[345060783,1733959838204,-500.0,9.999e-05,2]
[345060784,1733959838218,-500.0,9.999e-05,2]
[345060785,1733959838227,-500.0,9.999e-05,2]
[345060786,1733959838239,-492.41953706,9.999e-05,2]
[345060787,1733959838248,-500.0,9.999e-05,2]
[345060788,1733959838259,-500.0,9.999e-05,2]
[345060789,1733959838268,-373.74980304,9.999e-05,2]
[345060790,1733959838278,-500.0,9.999e-05,2]
[345060791,1733959838289,-500.0,9.999e-05,2]
[345060792,1733959838298,-500.0,9.999e-05,2]
[345060793,1733959838307,-500.0,9.999e-05,2]
[345060794,1733959838316,-1012644.58216238,0.0001,2]
[345060795,1733959838326,-1500.0,0.00010033,2]
[345060797,1733959838336,-1000.0,0.00010069,2]
[345060798,1733959838345,-155.63,0.00010137,2]
[345060799,1733959838355,-150.0,0.00010278,2]
[345060800,1733959838364,-150.0,0.000103,2]
[345060801,1733959838374,-150.0,0.00010317,2]
[345060802,1733959838383,-259.38,0.00010361,2]
[345060803,1733959838393,-1500.0,0.00010375,2]
[345060804,1733959838402,-150.0,0.00010378,2]
[345060805,1733959838412,-167.44,0.00010462,2]
[345060806,1733959838421,-480.29,0.00010485,2]
[345060807,1733959838431,-500.0,0.00010521,2]
[345060808,1733959838441,-496.83,0.00010539,2]
[345060809,1733959838450,-407.137,0.0001055,2]
[345060810,1733959838460,-150.0,0.00010578,2]
[345060812,1733959838469,-1300.0,0.0001063,2]
[345060814,1733959838479,-500.0,0.0001063,2]
[345060816,1733959838491,-500.0,0.0001063,2]
[345060818,1733959838500,-1500.0,0.0001066,2]
[345060820,1733959838510,-975.06,0.00010678,2]
[345060821,1733959838521,-9714.0,0.00010708,2]
[345060824,1733959838531,-4855.0,0.00010708,2]
[345060826,1733959838541,-4855.0,0.00010708,2]
[345060827,1733959838550,-4855.0,0.00010708,2]
[345060829,1733959838560,-4855.0,0.00010708,2]
[345060831,1733959838569,-242.01643198,0.00010713,2]
[345060833,1733959838578,-259.38,0.00010731,2]
[345060835,1733959838587,-150.0,0.00010763,2]
[345060837,1733959838596,-1005.63207415,0.00010769,2]
[345060839,1733959838606,-150.0,0.000108,2]
[345060857,1733959838829,-150.0,0.000108,2]
[345060858,1733959838838,-1122.33532335,0.00010877,2]
[345060859,1733959838850,-26.23031537,0.00010877,2]
[345060860,1733959838860,-165.378889,0.00010878,2]
[345060861,1733959838870,-505.85,0.00010958,2]
[345060862,1733959838879,-150.0,0.00010959,2]
[345060863,1733959838888,-725.98313051,0.00010968,2]
[345060864,1733959838898,-725.98313051,0.00010969,2]
[345060865,1733959838908,-420.0,0.00010986,2]
[345060866,1733959838918,-255.0,0.00010986,2]
[345060867,1733959838927,-725.98313051,0.00010988,2]
[345060868,1733959838937,-2946.7152115,0.0001099,2]
[345060869,1733959838947,-3000.0,0.0001099,2]
[345060870,1733959838956,-725.98313051,0.00010992,2]
[345060871,1733959838967,-725.98313051,0.00010995,2]
[345060872,1733959838976,-500.0,0.00010999,2]
[345060873,1733959838986,-725.98313051,0.00010999,2]
[345060874,1733959838996,-579.63264685,0.00011,2]
[345060875,1733959839007,-185.0,0.00011002,2]
[345060876,1733959839016,-1996.8,0.00011069,2]
[345060877,1733959839025,-178.962,0.00011069,2]
[345060878,1733959839035,-500.0,0.00011073,2]
[345060879,1733959839045,-563.0,0.00011086,2]
[345060880,1733959839054,-906.21104124,0.00011086,2]
[345060881,1733959839067,-987.78895876,0.00011086,2]
[345060882,1733959839076,-802.01915444,0.00011086,2]
[345060883,1733959839088,-14.98084556,0.00011086,2]
[345060884,1733959839098,-3762.0,0.00011086,2]
[345060885,1733959839107,-1253.0,0.00011086,2]
[345060886,1733959839117,-535.0,0.00011086,2]
[345060887,1733959839126,-976.0,0.00011086,2]
[345060888,1733959839136,-295.88913298,0.00011086,2]
[345060889,1733959839148,-3299.11086702,0.00011086,2]
[345060890,1733959839158,-434.88913299,0.00011086,2]
[345060891,1733959839170,-663.11086701,0.00011086,2]
[345060892,1733959839180,-155.76,0.00011086,2]
[345060893,1733959839190,-1262.0,0.00011086,2]
[345060894,1733959839199,-1498.34413299,0.00011086,2]
[345060895,1733959839211,-2380.65586701,0.00011086,2]
[345060896,1733959839225,-567.0,0.00011086,2]
[345060897,1733959839236,-673.202,0.00011086,2]
[345060898,1733959839251,-1167.0,0.00011086,2]
[345060899,1733959839262,-9288.72333425,0.0001109,2]
[345060900,1733959839271,-11657.331,0.0001109,2]
[345060901,1733959839281,-300.121208,0.00011097,3]
[345060902,1733959839291,-300.121208,0.00011097,3]
[345060903,1733959839301,-300.121208,0.00011097,3]
[345060904,1733959839311,-300.121208,0.00011097,3]
[345060905,1733959839321,-300.121208,0.00011097,3]
[345060906,1733959839330,-300.121208,0.00011097,2]
[345060907,1733959839341,-300.121208,0.00011097,2]